{"text_format":"1","workbook":"xlsx","n_sheets":6,"sheets":["Hovedmeny","Kalkulering","Konfigurasjon","Konfigurasjon2012","Konfigurasjon2013","Temp"],"not_rendered":{"charts":0,"images":2,"macros":1,"external_links":0,"defined_names":272,"comments":0,"pivot_tables":0},"unopened":[],"bounds":{"document_bytes":16777216,"sheet_cells":100000,"rows_first":2000,"rows_last":500,"rows_between":2000,"halvings":0,"cell_chars":16384,"cell_head_chars":4096},"cells_cut":0,"cells_raw":0,"read":"whole","date_system":"1900"}

{"sheet":"Hovedmeny","index":0,"n_rows":13,"n_cols":20,"rows_kept":13,"cut":false,"hidden":false,"merged":[[36,9,42,9],[0,0,0,23],[12,4,22,18],[1,0,27,3],[1,19,27,23]]}
["Klassekalkulering BMWCCN 2016 TEST1"]
["TESTVERSJON",null,null,null,null,null,null,null,null,null,null,null,null,null,null,null,null,null,null,"TESTVERSJON"]
[]
[]
[]
[]
[]
[]
[]
[]
[]
[]
[null,null,null,null,"BMW CCN Racing\nBMW Cup er egen racing serie for biler produsert av BMW (Bayerische Motoren Werke AG),og organiseres som undergruppe av BMWCCN Intensjonen med BMW Cup er at det skal være en enkel og oversiktlig serie hvor terskelen for deltakelse skal være så lav som mulig. Serien kjøres organisert som klubbracing, med utgangspunkt i  og det førende prinsippet “Gentlemansracing” skal være overordnet. Platekontakt og uvøren/ufin oppførsel under løpene på bane skal søkes unngått.\n\nMer informasjon om BMW Cup finner du på http://racing.bmwccn.no/. \nSpørsmål kan sendes per mail til racing@bmwccn.no \n"]

{"sheet":"Kalkulering","index":1,"n_rows":40,"n_cols":25,"rows_kept":40,"cut":false,"hidden":true,"merged":[[0,24,4,26],[5,24,9,26],[0,5,0,10],[36,1,36,3],[0,14,0,16],[10,6,10,9],[2,6,2,9],[22,6,22,9],[25,5,25,10],[11,8,11,9],[7,1,7,4],[6,1,6,4],[49,6,49,8],[0,0,0,4],[1,0,1,4],[2,0,3,0],[2,1,3,4],[4,0,5,1],[4,2,5,4],[35,1,35,3],[33,1,33,3],[32,1,32,3],[48,6,48,8],[39,0,39,6],[8,0,13,3]]}
[{"$f":"Overskrift","v":"Klassekalkulering BMWCCN 2016 TEST1"},null,null,null,null,"Spesifikasjoner",null,null,null,null,null,null,"Klassetilhørlighet:",null,{"$f":"Q36","v":3},null,null,null,null,null,null,null,null,null,"Alle felt med denne bakgrunnsfargen kan endres."]
["Utskrift skal alltid ligge sammen med vognbok ved løp i Corsa Italiana"]
["BIL:",null,null,null,null,null,"Spesifikasjoner for bilen",null,null,null,null,null,"Tillegg trimming motor",null,null,"+",{"$f":"SUM(Q4:Q11)","v":0},null,null,"Fordeling","Reell %"]
[null,null,null,null,null,null,null,null,null,null,null,null,{"$f":"INDEX(Konfigurasjon!C33:I38,TypeMotor,MotorEndring)","v":"Beholdt orginaloppsett"},null,null,null,{"$f":"IF(Diesel,0,IF(EttermontertTurbo,0,IF(OrgTurbo,T4,IF(SUM($T$4:$T$9)>0,$T4*$U$12/SUM($T$4:$T$9),0))))","v":0},null,null,{"$f":"IF(TypeMotor=6,IF(Org4Ventiler,INDEX(Konfigurasjon!C30:I30,1,MotorEndring),INDEX(Konfigurasjon!C29:I29,1,MotorEndring)),INDEX(Konfigurasjon!C23:I28,TypeMotor,MotorEndring))","v":0},{"$f":"IF(SUM($T$4:$T$9)>0,$T$4*$U$12/SUM($T$4:$T$9),0)","v":0}]
["STARTNUMMER:",null,null,null,null,null,"Bilens produksjonsår",null,null,2000,null,null,"Byttet kammer og / eller større ventiler",null,null,"+",0,null,null,{"$f":"IF(KammerValgt=TRUE,Kammer,0)","v":0},{"$f":"IF(SUM($T$4:$T$9)>0,$T$5*$U$12/SUM($T$4:$T$9),0)","v":0}]
[null,null,null,null,null,null,"Bilens vekt (løpsklar inkl fører)",null,null,1000,"kg",null,"Endret kompresjon",null,null,"+",0,null,null,{"$f":"IF(KompresjonValgt=TRUE,Kompresjon,0)","v":0},{"$f":"IF(SUM($T$4:$T$9)>0,T6*$U$12/SUM($T$4:$T$9),0)","v":0},null,null,null,"En rød trekant betyr at utvidet informasjon gis om man holder musepekeren over denne."]
["FØRER 1",null,null,null,null,null,"Grunnbredde dekk",null,null,{"$f":"165+((J$6-500)/10)","v":215},"mm",null,"Uorginal eksosmanifold / grenrør",null,null,"+",0,null,null,{"$f":"IF(ManifoldValgt=TRUE,Eksosmanifold,0)","v":0},0]
["FØRER 2",null,null,null,null,null,"Dekkbredde",null,null,null,null,null,"Katalysator renset / fjernet",null,null,"+",0,null,null,{"$f":"IF(OrgKat=TRUE,IF(KatFjernetValgt=TRUE,KatFjernet,0),0)","v":0},0]
["\nFølgende kan gjøres uten å få effekt-tillegg:\n- Inntil 1 mm plansliping av topp\n- Bytte luftfilter\n- Eksosanlegg etter grenrør (fjerne kat. gir tillegg)\n- Letting av svinghjul\n- Porting av topp og kanaler\n",null,null,null,null,null,null,null,null,null,null,null,"Plenum volum endret / Innsugsmanifold endret",null,null,"+",0,null,null,{"$f":"IF(PlenumValgt,IF(Plenum=1,PlenumNA,IF(Plenum=2,PlenumTurbo,0)),0)","v":0},0]
[null,null,null,null,null,null,null,null,null,null,null,null,"Uorginal turbo / endret kompressor driving",null,null,"+",0,null,null,{"$f":"IF(OrgTurbo,IF(UorgTurboValgt,UorgTurbo,0),0)","v":0},0]
[null,null,null,null,null,null,"Orginale spesifikasjoner for motor",null,null,null,null,null,"Ombygget / større intercooler",null,null,"+",0,null,null,{"$f":"IF(OrgTurbo,IF(IntercoolerValgt,Intercooler,0),0)","v":0},0]
[null,null,null,null,null,null,null,null,null,null,null,null,null,null,null,null,null,null,null,{"$f":"(1+T4)*(1+T5)*(1+T6)*(1+T7)*(1+T8)*(1+T9)*(1+T10)*(1+T11)-1","v":0},{"$f":"(T14-Orginaleffekt*BenyttetSlagvolum/OrgSlagvolum)/Orginaleffekt*BenyttetSlagvolum/OrgSlagvolum","v":0}]
[null,null,null,null,null,null,"Orginalt slagvolum",null,null,2000,"ccm",null,"Tillegg drivstoff",null,null,"+",{"$f":"SUM(Q14:Q15)","v":0},null,null,null,{"$f":"SUM(U4:U11)","v":0}]
[null,null,null,null,null,null,"Orginaleffekt",null,null,130,"hk",null,"E85",null,null,"+",{"$f":"IF(Diesel,0,IF(E85Valgt,IF(Turbomotor,E85Turbo,E85NA),0))","v":0},null,null,{"$f":"IF(OrgTurbo,IF(MaksGrunneffekt>TempGrunneffekt,TempGrunneffekt,MaksGrunneffekt),IF(EttermontertTurbo=TRUE,MaksGrunneffekt,Orginaleffekt*BenyttetSlagvolum/OrgSlagvolum+T12*(MaksGrunneffekt-Orginaleffekt*BenyttetSlagvolum/OrgSlagvolum)/Temp!O17))","v":130},null,null,{"$f":"Orginaleffekt*BenyttetSlagvolum/OrgSlagvolum+T12*(MaksGrunneffekt-Orginaleffekt*BenyttetSlagvolum/OrgSlagvolum)/Temp!O17","v":130}]
["Klasseindeling",null,null,null,null,null,null,null,null,null,null,null,"Racefuel",null,null,"+",{"$f":"IF(Diesel,0,IF(RacefuelValgt,IF(Turbomotor,RacefuelTurbo,RacefuelNA),0))","v":0},null,null,{"$f":"IF(T14+0.1<MaksGrunneffekt,\"\",(1+TilleggDrivstoff)*MaksGrunneffekt/BenyttetSlagvolum*1000)","v":""},{"$f":"IF(GrenseGrunneffekt>TempGrunneffekt,\"\",\"hk/liter\")","v":""},null,{"$f":"MaksGrunneffekt","v":170}]
["Klasse 1",{"$f":"_KL1","v":2.5},{"$f":"B17-0.01","v":4.74},"kg/hk",null,null,"Diesel",null,null,null,null,null,null,null,null,null,null,null,null,null,null,null,{"$f":"BenyttetSlagvolum","v":2000}]
["Klasse 2",{"$f":"_KL2","v":4.75},{"$f":"B18-0.01","v":6.99},"kg/hk",null,null,"4 ventiler per sylinder",null,null,null,null,null,"Utregnet grunneffekt",null,null,{"$f":"IF(Diesel,IF(Org4Ventiler,DieselFaktor4v*Orginaleffekt*BenyttetSlagvolum/OrgSlagvolum,DieselFaktor2v*Orginaleffekt*BenyttetSlagvolum/OrgSlagvolum),(1+TilleggDrivstoff)*T14)","v":130},"hk",null,null,null,null,null,{"$f":"OrgSlagvolum","v":2000}]
["Klasse 3",{"$f":"_KL4","v":7},"& tyngre","kg/hk",null,null,"1 gass-spjell per sylinder",null,null,null,null,null,{"$f":"IF(T14+0.1<MaksGrunneffekt,\"\",\"Begrenset av maks effekt per liter\")","v":""},null,null,{"$f":"T15","v":""},{"$f":"IF(T14+0.1<MaksGrunneffekt,\"\",\"hk/liter\")","v":""},null,null,null,{"$f":"INDEX(Konfigurasjon!C29:I29,1,MotorEndring)","v":0},null,{"$f":"Temp!O17","v":0.72380285}]
[null,null,null,null,null,null,"Turbo / kompressor"]
[null,null,null,null,null,null,"Levert orginalt med katalysator"]
["Klasse 1","Minimum vekt",{"$f":"Kl1_MinVekt+0.5","v":366.69718309859149},"kg inkl fører",null,null,null,null,null,null,null,null,"Fradrag",null,null,"-",{"$f":"SUM(Q22:Q23)","v":0}]
["Klasse 2","Minimum vekt",{"$f":"Kl2_MinVekt+0.5","v":660.04606141522038},"kg inkl fører",null,null,null,null,null,null,null,null,"Dekk smalere enn grunnbredden",null,null,"-",{"$f":"IF(DekkbreddeValgt<0,DekkbreddeValgt,0)","v":0}]
["Klasse 3","Minimum vekt",{"$f":"Kl3_MinVekt+0.5","v":924.35786802030464},"kg inkl fører",null,null,"Endringer gjort med motor",null,null,null,null,null,"Ikke diffbrems / sperre",null,null,"-",{"$f":"IF(DiffValgt=TRUE,Diffbrems,0)","v":0}]
[]
[null,null,null,null,null,null,"Endret slagvolum",null,null,{"$f":"OrgSlagvolum","v":2000},"ccm"]
[null,null,null,null,null,null,null,null,null,null,null,null,"Tillegg",null,null,"+",{"$f":"SUM(Q27:Q29)","v":0}]
[null,null,null,null,null,null,"Ettermontert turbo / kompressor",null,null,null,null,null,"Dekk bredere enn grunnbredde",null,null,"+",{"$f":"IF(DekkbreddeValgt>0,DekkbreddeValgt,0)","v":0}]
[null,null,null,null,null,null,null,null,null,null,null,null,"ABS",null,null,"+",{"$f":"IF(ABSValgt=TRUE,ABS,0)","v":0}]
[null,null,null,null,null,null,{"$f":"INDEX(Konfigurasjon!$C$33:$I$38,OrgMotorType,1)","v":"Beholdt orginaloppsett"},null,null,null,null,null,"Uorginal bakspoiler / vinge",null,null,"+",{"$f":"IF(BakspoilerValgt=TRUE,Bakspoiler,0)","v":0}]
[null,null,null,null,null,null,{"$f":"INDEX(Konfigurasjon!$C$33:$I$38,OrgMotorType,2)","v":"Trimchip / Uorginalt innsprut / Større halsringer"}]
["Kontrollert:",null,null,null,null,null,{"$f":"INDEX(Konfigurasjon!$C$33:$I$38,OrgMotorType,3)","v":"Større gass-spjell / Større forgassere"}]
[null,null,null,null,null,null,{"$f":"INDEX(Konfigurasjon!$C$33:$I$38,OrgMotorType,4)","v":"1 gass-spjell per sylinder"}]
[null,null,null,null,null,null,null,null,null,null,null,null,"Utregnet konkurranse-effekt",null,null,{"$f":"UtregnetGrunneffekt*(1+Avdrag)*(1+Tillegg)","v":130},"hk"]
[null,"Dato og sted",null,null,null,null,{"$f":"INDEX(Konfigurasjon!$C$33:$I$38,OrgMotorType,7)","v":" "},null,null,null,null,null,"Utregnet vekt/effekt",null,null,{"$f":"Vekt/UtregnetKonkurranseEffekt","v":7.6923076923076925},"kg/hk"]
[]
[null,null,null,null,null,null,null,null,null,null,null,null,"Klassetillhørighet",null,null,null,{"$f":"IF(VektEffekt<_KL1,\"Ingen\",IF(VektEffekt<_KL2,1,IF(VektEffekt<_KL3,2,IF(BenyttetSlagvolum>1320,3,\"MilleTreCento\"))))","v":3}]
[null,"Underskrift - Teknisk kontrollør"]
[]
["Alle felt med denne bakgrunnsfargen kan endres"]
["En rød trekant betyr at utvidet informasjon gis om man holder musepekeren over denne"]

{"sheet":"Konfigurasjon","index":2,"n_rows":67,"n_cols":10,"rows_kept":67,"cut":false,"hidden":true,"merged":[[1,6,1,9]]}
[]
[null,null,null,null,null,null,"TILLEGG / FRATREKK %"]
[null,"Klasseindeling 2016 - vekt med sjåfør",null,null,null,null,"Kammer / ventiler",0.15,"E85 NA",0.05]
[null,"Klasse 1",2.5,{"$f":"C5-0.01","v":4.74},"kg/hk",null,"Endret kompresjon",0.1,"E85 Turbo",0.15]
[null,"Klasse 2",4.75,{"$f":"C6-0.01","v":6.99},"kg/hk",null,"Uorginal eksosmanifold ",0.05,"Racefuel NA",0.03]
[null,"Klasse 3",7,{"$f":"C7-0.01","v":6.99},"kg/hk",null,"Omprogrammert tenning",0.05,"Racefuel Turbo",0.15]
[null,"CMT",7,"& tyngre","kg/hk",null,"Uorginal turbo",0.3,"Diesel faktor 2v per syl",2]
[null,null,null,null,null,null,"Ombygget intercooler",0.2,"Diesel faktor 4v per syl",2]
[null,null,null,null,null,null,"Ikke diffbrems/sperre",-0.1]
[null,null,null,null,null,null,"Dekkbredde per 10mm",0.02]
[null,"Trimmet motor, grunneffekt per liter (hk/l)",null,null,null,null,"ABS",0.05]
[null,"Type motor (TypeMotorMod)","2 VENTILER, 1 TENNPLUGG / SYL","2 VENTILER, 2 TENNPLUGGER / SYL","4 VENTILER / SYL",null,"Bakspoiler, uoriginal",7.4999999999999997E-2]
[null,"1 spjell/2 syl",85,85,105,null,"Frontspoiler, uoriginal",0.05]
[null,"1 spjell/syl",95,95,120,null,"R-dekk",0.05]
[null,"Turbo",145,145,185,null,"Kat fjernet",0.05]
[null,"Forgasser Turbo/kompressor",145,145,185,null,"Plenum endret NA",0.03]
[null,"Innsprut Turbo/kompressor",145,145,185,null,"Plenum endret turbo",0.1]
[]
[]
[]
[null,"Tillegg type motor (%)"]
[null,null,"Valg 1","Valg 2","Valg 3","Valg 4","Valg 5","Valg 6","Valg 7"]
[null,"1 spjell/2 syl",0,7.4999999999999997E-2,0.2,0.2]
[null,"1 spjell/syl",0,7.4999999999999997E-2,0.2]
[null,"Turbo",0,0.25,0.3,0.5]
[null,"Forgasser turbo",0,0.25,0.3,0.5]
[null,"Injection turbo",0,0.25,0.5,0.3]
[null,"Injection 1 spjell/syl",0,0.05,0.15,0.15,0.3,0.3]
[]
[]
[null,"Tillegg type motor tekst"]
[null,null,"Valg 1","Valg 2","Valg 3","Valg 4","Valg 5","Valg 6","Valg 7","Beskrivelse"]
[null,"1 spjell/2 syl","Beholdt orginaloppsett","Trimchip / Uorginalt innsprut / Større halsringer","Større gass-spjell / Større forgassere","1 gass-spjell per sylinder",null,null," ","Orginalt har motoren ikke 1 spjell per syl"]
[null,"1 spjell/syl","Beholdt orginaloppsett","Trimchip / Uorginalt innsprut / Større halsringer","Større spjellhus / Større forgassere"," "," "," "," ","Orginalt har motoren 1 spjell per syl"]
[null,"Turbo","Beholdt orginaloppsett","Trimchip / Endret turbotrykk","Større forgassere / Byttet fra innsprut til forgasser","Uorginalt innsprut"," "," "," ","Orginalt har motoren innsprut"]
[null,"Forgasser turbo","Beholdt orginaloppsett","Orginale forgassere, endret turbotrykk","Endret forgassere, endret turbotrykk","Endret til innsprut"," "," "," ","Orginalt har turbomotoren forgasser "]
[null,"Injection turbo","Beholdt orginaloppsett","Orginal innsprut med trimchip og/eller endret turbotrykk","Endret til uorginal innsprut","Endret til forgasser + evt endret turbotrykk"," "," "," ","Orginalt har turbomotoren innsprut"]
[null,"Injection NA 1 spjell/syl","Beholdt orginaloppsett","Orginal innsprut med trimchip","Orginal med trimchip + øket størrelse på spjellhus","Endret til uorginal innsprut + org størrelse på spjellhus","Endret til uorginal innsprut + øket størrelse på spjellhus","Endret til forgasser med 1 spjell per sylinder"," ","Orginalt har motoren innsprut med 1 spjell per syl"]
[]
[null,"TypeMotorMod etter valgt endring"]
[null,null,"Valg 1","Valg 2","Valg 3","Valg 4","Valg 5","Valg 6","Valg 7"]
[null,"1 spjell/2 syl",1,1,1,2]
[null,"1 spjell/syl",2,2,2]
[null,"Turbo",3,3,3,3]
[null,"Forgasser turbo",4,4,4,5]
[null,"Injection turbo",5,5,5,4]
[null,"Injection NA 1 spjell/syl",6,6,6,6,6,2]
[]
[]
[null,"\"Omprogrammert tenning\" tilgjengelig "]
[null,null,"Valg 1","Valg 2","Valg 3","Valg 4","Valg 5","Valg 6","Valg 7"]
[null,"1 spjell/2 syl","x","x","x","x"]
[null,"1 spjell/syl","x","x","x"]
[null,"Turo","x",null,null,null,"x","x"]
[null,"Forgasser turbo","x","x","x"]
[null,"Injection turbo",null,null,null,"x"]
[null,"Injection NA 1 spjell/syl","x",null,null,null,"x","x"]
[]
[]
[null,"Plenum - endret volum\" tilgjengelig "]
[null,null,"Valg 1","Valg 2","Valg 3","Valg 4","Valg 5","Valg 6","Valg 7"]
[null,"1 spjell/2 syl",1,1,1]
[null,"1 spjell/syl"]
[null,"Turbo",2,2,null,2]
[null,"Forgasser turbo"]
[null,"Injection turbo",2,2,2]
[null,"Injection NA 1 spjell/syl"]

{"sheet":"Konfigurasjon2012","index":3,"n_rows":67,"n_cols":10,"rows_kept":67,"cut":false,"hidden":true,"merged":[[1,6,1,7]]}
[]
[null,null,null,null,null,null,"TILLEGG / FRATREKK %"]
[null,"Klasseindeling 2009 - vekt med sjåfør",null,null,null,null,"Kammer / ventiler",0.15]
[null,"Klasse 1",2.25,{"$f":"C5-0.01","v":4.24},"kg/hk",null,"Endret kompresjon",0.1]
[null,"Klasse 2",4.25,{"$f":"C6-0.01","v":5.59},"kg/hk",null,"Uorginal eksosmanifold ",0.05]
[null,"Klasse 3",5.6,{"$f":"C7-0.01","v":6.99},"kg/hk",null,"Omprogrammert tenning",0.05]
[null,"Klasse 4",7,"& tyngre","kg/hk",null,"Uorginal turbo",0.3]
[null,null,null,null,null,null,"Ombygget intercooler",0.2]
[null,null,null,null,null,null,"Ikke diffbrems/sperre",-0.1]
[null,null,null,null,null,null,"Dekkbredde per 10mm",0.02]
[null,"Trimmet motor, grunneffekt per liter (hk/l)",null,null,null,null,"ABS",0.05]
[null,null,"2 VENTILER, 1 TENNPLUGG / SYL","2 VENTILER, 2 TENNPLUGGER / SYL","4 VENTILER / SYL",null,"Bakspoiler, uoriginal",7.4999999999999997E-2]
[null,"Forgasser 1 spjell/2 syl",85,90,110,null,"Frontspoiler, uoriginal",0.05]
[null,"Forgasser 1 spjell/syl",85,90,110,null,"R-dekk",0.05]
[null,"Injection",95,100,120,null,"Kat fjernet",0.05]
[null,"Turbo/kompressor",145,150,185,null,"Plenum endret NA",0.03]
[null,null,null,null,null,null,"Plenum endret turbo",0.1]
[]
[]
[]
[null,"Tillegg type motor (%)"]
[null,null,"Valg 1","Valg 2","Valg 3","Valg 4","Valg 5","Valg 6","Valg 7"]
[null,"Forgasser 1 spjell/2 syl",0,0.05,0.1,0.2,0.1,0.2]
[null,"Forgasser 1 spjell/syl",0,0.05,0.1,0.1,0.2]
[null,"Injection",0,0.05,0.05,0.2,0,0.1]
[null,"Forgasser turbo",0,0.25,0.3,0.5]
[null,"Injection turbo",0,0.25,0.5,0.3]
[null,"Injection NA 1 spjell/syl",0,0.05,0.15,0.15,0.3,0.1,0.2]
[null,"Injection 4v",0,0.05,0.05,0.3,0.1,0.1]
[null,"Injection 4v  1 spjell per syl",0,0.05,0.15,0.15,0.3,0.1,0.1]
[null,"Tillegg type motor tekst"]
[null,null,"Valg 1","Valg 2","Valg 3","Valg 4","Valg 5","Valg 6","Valg 7","Beskrivelse"]
[null,"Forgasser 1 spjell/2 syl","Beholdt orginaloppsett","Orginale forgassere med større halsringer","Endret størrelse på forgasserne","Endret forgasseroppsett til 1 spjell per sylinder","Endret til innsprut","Endret til innsprut med 1 spjell per sylinder","N/A","Orginalt har motoren forgasser med 1 spjell per 2 syl"]
[null,"Forgasser 1 spjell/syl","Beholdt orginaloppsett","Orginale forgassere med større halsringer","Endret størrelse på forgasserne","Endret til innsprut","Endret til innsprut med 1 spjell per sylinder","N/A","N/A","Orginalt har motoren forgasser med 1 spjell per syl"]
[null,"Injection","Beholdt orginaloppsett","Orginal innsprut med trimchip","Endret til uorginal innsprut","Endret til uorginal innsprut med 1 spjell per sylinder","Endret til forgasser med 1 spjell per 2 sylindre","Endret til forgasser med 1 spjell per sylinder","N/A","Orginalt har motoren innsprut"]
[null,"Forgasser turbo","Beholdt orginaloppsett","Orginale forgassere, endret turbotrykk","Endret forgassere, endret turbotrykk","Endret til innsprut","N/A","N/A","N/A","Orginalt har turbomotoren forgasser "]
[null,"Injection turbo","Beholdt orginaloppsett","Orginal innsprut med trimchip og/eller endret turbotrykk","Endret til uorginal innsprut","Endret til forgasser + evt endret turbotrykk","N/A","N/A","N/A","Orginalt har turbomotoren innsprut"]
[null,"Injection NA 1 spjell/syl","Beholdt orginaloppsett","Orginal innsprut med trimchip","Orginal innsprut med trimchip + øket størrelse på spjellhus","Endret til uorginal innsprut","Endret til uorginal innsprut + øket størrelse på spjellhus","Endret til forgasser med 1 spjell per 2 sylindre","Endret til forgasser med 1 spjell per sylinder","Orginalt har motoren innsprut med 1 spjell per syl"]
[]
[null,"Type motor etter valgt endring"]
[null,null,"Valg 1","Valg 2","Valg 3","Valg 4","Valg 5","Valg 6","Valg 7"]
[null,"Forgasser 1 spjell/2 syl",1,1,1,2,3,3]
[null,"Forgasser 1 spjell/syl",2,2,2,3,3]
[null,"Injection",3,3,3,3,1,2]
[null,"Forgasser turbo",4,4,4,4]
[null,"Injection turbo",4,4,4,4]
[null,"Injection NA 1 spjell/syl",3,3,3,3,3,1,2]
[]
[]
[null,"\"Omprogrammert tenning\" tilgjengelig "]
[null,null,"Valg 1","Valg 2","Valg 3","Valg 4","Valg 5","Valg 6","Valg 7"]
[null,"Forgasser 1 spjell/2 syl","x","x","x","x"]
[null,"Forgasser 1 spjell/syl","x","x","x"]
[null,"Injection","x",null,null,null,"x","x"]
[null,"Forgasser turbo","x","x","x"]
[null,"Injection turbo",null,null,null,"x"]
[null,"Injection NA 1 spjell/syl","x",null,null,null,null,"x","x"]
[]
[]
[null,"Plenum - endret volum\" tilgjengelig "]
[null,null,"Valg 1","Valg 2","Valg 3","Valg 4","Valg 5","Valg 6","Valg 7"]
[null,"Forgasser 1 spjell/2 syl"]
[null,"Forgasser 1 spjell/syl"]
[null,"Injection",1,1,1]
[null,"Forgasser turbo"]
[null,"Injection turbo",2,2,2]
[null,"Injection NA 1 spjell/syl"]

{"sheet":"Konfigurasjon2013","index":4,"n_rows":67,"n_cols":10,"rows_kept":67,"cut":false,"hidden":true,"merged":[[1,6,1,7]]}
[]
[null,null,null,null,null,null,"TILLEGG / FRATREKK %"]
[null,"Klasseindeling 2009 - vekt med sjåfør",null,null,null,null,"Kammer / ventiler",0.15]
[null,"Klasse 1",2.25,{"$f":"C5-0.01","v":4.24},"kg/hk",null,"Endret kompresjon",0.1]
[null,"Klasse 2",4.25,{"$f":"C6-0.01","v":5.59},"kg/hk",null,"Uorginal eksosmanifold ",0.05]
[null,"Klasse 3",5.6,{"$f":"C7-0.01","v":6.99},"kg/hk",null,"Omprogrammert tenning",0.05]
[null,"Klasse 4",7,"& tyngre","kg/hk",null,"Uorginal turbo",0.3]
[null,null,null,null,null,null,"Ombygget intercooler",0.2]
[null,null,null,null,null,null,"Ikke diffbrems/sperre",-0.1]
[null,null,null,null,null,null,"Dekkbredde per 10mm",0.02]
[null,"Trimmet motor, grunneffekt per liter (hk/l)",null,null,null,null,"ABS",0.05]
[null,null,"2 VENTILER, 1 TENNPLUGG / SYL","2 VENTILER, 2 TENNPLUGGER / SYL","4 VENTILER / SYL",null,"Bakspoiler, uoriginal",7.4999999999999997E-2]
[null,"Forgasser 1 spjell/2 syl",80,85,105,null,"Frontspoiler, uoriginal",0.05]
[null,"Forgasser 1 spjell/syl",95,100,120,null,"R-dekk",0.05]
[null,"Injection 1spjell/syl",95,100,120,null,"Kat fjernet",0.05]
[null,"Turbo/kompressor",145,150,185,null,"Plenum endret NA",0.03]
[null,"Injection 1spjell/2 syl",80,85,105,null,"Plenum endret turbo",0.1]
[]
[]
[]
[null,"Tillegg type motor (%)"]
[null,null,"Valg 1","Valg 2","Valg 3","Valg 4","Valg 5","Valg 6","Valg 7"]
[null,"Forgasser 1 spjell/2 syl",0,0.05,0.1,0.2,0.1,0.2]
[null,"Forgasser 1 spjell/syl",0,0.05,0.2,0.2]
[null,"Injection",0,0.05,0.05,0.2,0.05,0.2]
[null,"Forgasser turbo",0,0.25,0.3,0.5]
[null,"Injection turbo",0,0.25,0.5,0.3]
[null,"Injection NA 1 spjell/syl",0,0.05,0.15,0.15,0.3,0.1,0.2]
[null,"Injection 4v",0,0.05,0.05,0.3,0.1,0.1]
[null,"Injection 4v  1 spjell per syl",0,0.05,0.15,0.15,0.3,0.1,0.1]
[null,"Tillegg type motor tekst"]
[null,null,"Valg 1","Valg 2","Valg 3","Valg 4","Valg 5","Valg 6","Valg 7","Beskrivelse"]
[null,"Forgasser 1 spjell/2 syl","Beholdt orginaloppsett","Orginale forgassere med større halsringer","Endret størrelse på forgasserne","Endret forgasseroppsett til 1 spjell per sylinder","Endret til innsprut","Endret til innsprut med 1 spjell per sylinder","N/A","Orginalt har motoren forgasser med 1 spjell per 2 syl"]
[null,"Forgasser 1 spjell/syl","Beholdt orginaloppsett","Orginale forgassere med større halsringer","Endret størrelse på forgasserne","Endret til innsprut med 1 spjell per sylinder","N/A","N/A","N/A","Orginalt har motoren forgasser med 1 spjell per syl"]
[null,"Injection","Beholdt orginaloppsett","Orginal innsprut med trimchip","Endret til uorginal innsprut","Endret til uorginal innsprut med 1 spjell per sylinder","Endret til forgasser med 1 spjell per 2 sylindre","Endret til forgasser med 1 spjell per sylinder","N/A","Orginalt har motoren innsprut"]
[null,"Forgasser turbo","Beholdt orginaloppsett","Orginale forgassere, endret turbotrykk","Endret forgassere, endret turbotrykk","Endret til innsprut","N/A","N/A","N/A","Orginalt har turbomotoren forgasser "]
[null,"Injection turbo","Beholdt orginaloppsett","Orginal innsprut med trimchip og/eller endret turbotrykk","Endret til uorginal innsprut","Endret til forgasser + evt endret turbotrykk","N/A","N/A","N/A","Orginalt har turbomotoren innsprut"]
[null,"Injection NA 1 spjell/syl","Beholdt orginaloppsett","Orginal innsprut med trimchip","Orginal innsprut med trimchip + øket størrelse på spjellhus","Endret til uorginal innsprut","Endret til uorginal innsprut + øket størrelse på spjellhus","Endret til forgasser med 1 spjell per 2 sylindre","Endret til forgasser med 1 spjell per sylinder","Orginalt har motoren innsprut med 1 spjell per syl"]
[]
[null,"Type motor etter valgt endring"]
[null,null,"Valg 1","Valg 2","Valg 3","Valg 4","Valg 5","Valg 6","Valg 7"]
[null,"Forgasser 1 spjell/2 syl",1,1,1,2,3,3]
[null,"Forgasser 1 spjell/syl",2,2,2,3]
[null,"Injection",3,3,3,3,1,2]
[null,"Forgasser turbo",4,4,4,4]
[null,"Injection turbo",4,4,4,4]
[null,"Injection NA 1 spjell/syl",3,3,3,3,3,1,2]
[]
[]
[null,"\"Omprogrammert tenning\" tilgjengelig "]
[null,null,"Valg 1","Valg 2","Valg 3","Valg 4","Valg 5","Valg 6","Valg 7"]
[null,"Forgasser 1 spjell/2 syl","x","x","x","x"]
[null,"Forgasser 1 spjell/syl","x","x","x"]
[null,"Injection","x",null,null,null,"x","x"]
[null,"Forgasser turbo","x","x","x"]
[null,"Injection turbo",null,null,null,"x"]
[null,"Injection NA 1 spjell/syl","x",null,null,null,null,"x","x"]
[]
[]
[null,"Plenum - endret volum\" tilgjengelig "]
[null,null,"Valg 1","Valg 2","Valg 3","Valg 4","Valg 5","Valg 6","Valg 7"]
[null,"Forgasser 1 spjell/2 syl"]
[null,"Forgasser 1 spjell/syl"]
[null,"Injection",1,1,1]
[null,"Forgasser turbo"]
[null,"Injection turbo",2,2,2]
[null,"Injection NA 1 spjell/syl"]

{"sheet":"Temp","index":5,"n_rows":43,"n_cols":17,"rows_kept":43,"cut":false,"hidden":true,"merged":[[0,7,0,8]]}
[null,null,null,null,null,165,null,"TILLEGG / FRATREKK",null,null,"MAX TILLEGG MOTOR",null,null,"MAX TILLEGG MOTOR 2"]
[null,null,null,null,null,175,null,"Kammer / ventiler",false,null,{"$f":"Kammer","v":0.15},{"$f":"1+$K2","v":1.1499999999999999},"Kammer",{"$f":"Kammer","v":0.15},{"$f":"1+$K2","v":1.1499999999999999},"Kammer",{"$f":"COUNT(Temp!N2:N15)-COUNTIF(Temp!N2:N15,0)","v":6}]
[null,null,null,null,null,185,null,"Endret kompresjon",false,null,{"$f":"Kompresjon","v":0.1},{"$f":"1+$K3","v":1.1000000000000001},"Kompresjon",{"$f":"Kompresjon","v":0.1},{"$f":"1+$K3","v":1.1000000000000001},"Kompresjon",{"$f":"(1+O18)/((1+N2)*(1+N3)*(1+N4)*(1+N13)*(1+N14)*(1+N15))","v":0.75860897183938858}]
[null,6,"ValgtDekkbredde",null,null,195,null,"Uorginal eksosmanifold ",false,null,{"$f":"Eksosmanifold","v":0.05},1.05,"Eksosmanifold",{"$f":"Eksosmanifold","v":0.05},1.05,"Eksosmanifold",{"$f":"POWER(Q3,1/Q2)","v":0.95499917361486697}]
[null,1,"MotorEndring",null,null,205,null,"Omprogrammert tenning",false,null,null,1,null,null,1,null,{"$f":"COUNT(Kalkulering!T4:T9)-COUNTIF(Kalkulering!T4:T9,0)","v":0}]
[null,{"$f":"OrgMotorType","v":1},"TypeMotor",null,null,215,null,"Uorginal turbo",false,null,{"$f":"IF(OrgTurbo,UorgTurbo)","v":false},1,"Uorg turbo",null,1,"Uorg turbo",{"$f":"(1+Kalkulering!U12)/((1+Kalkulering!T4)*(1+Kalkulering!T5)*(1+Kalkulering!T6)*(1+Kalkulering!T7)*(1+Kalkulering!T8)*(1+Kalkulering!T9))","v":1}]
[null,null,null,null,null,225,null,"Ombygget intercooler",false,null,{"$f":"IF(OrgTurbo,Intercooler)","v":false},1,"Intercooler",null,1,"Intercooler",{"$f":"POWER(Q6,1/Q5)","v":{"$error":"#DIV/0!"}}]
[null,{"$f":"IF(Org4Ventiler,3,1)","v":1},"Ventiler",null,null,235,null,"Ikke diffbrems/sperre",false,null,null,1,null,null,1]
[null,{"$f":"IF(OrgTurbo,INDEX(Konfigurasjon!C42:I47,OrgMotorType,MotorEndring),IF(EttermontertTurbo,5,INDEX(Konfigurasjon!C42:I47,OrgMotorType,MotorEndring)))","v":1},"TypeMotorMod",null,null,245,null,"Dekkbredde ",{"$f":"(ValgtDekkbredde_mm-Kalkulering!J7)*Dekkbredde/10","v":0},null,null,1,null,null,1]
[null,1980,"Produsert",null,null,255,null,"ABS",false,null,null,1,null,null,1]
[null,{"$f":"INDEX(Konfigurasjon!C62:I67,TypeMotor,MotorEndring)","v":1},"Plenum",null,null,265,null,"Bakspoiler, uoriginal",false,null,null,1,null,null,1]
[null,null,"",null,null,275,null,"Frontspoiler, uoriginal",false,null,null,1,null,null,1]
[null,null,"",null,null,285,null,"R-dekk",false,null,{"$f":"IF(TypeMotor=1,IF(TypeMotorMod=1,Konfigurasjon!E23,IF(TypeMotorMod=2,Konfigurasjon!F23)),IF(TypeMotor=2,IF(TypeMotorMod=2,Konfigurasjon!E24,),IF(TypeMotor=4,IF(TypeMotorMod=4,Konfigurasjon!E26,IF(TypeMotorMod=5,Konfigurasjon!F26)),IF(TypeMotor=5,IF(TypeMotorMod=5,Konfigurasjon!E27,IF(TypeMotorMod=4,Konfigurasjon!F27))))))","v":0.2},1.2,null,{"$f":"K13","v":0.2},{"$f":"1+$N13","v":1.2}]
[null,null,"",null,null,295,null,"Plenum endret",false,null,{"$f":"IF(Plenum=1,PlenumNA,IF(Plenum=2,PlenumTurbo,0))","v":0.03},1.03,"Plenum",{"$f":"IF(Plenum=1,PlenumNA,IF(Plenum=2,PlenumTurbo,0))","v":0.03},1.03,"Plenum"]
[null,null,"",null,null,305,null,"Kat fjernet",false,null,{"$f":"IF(OrgKat,KatFjernet,0)","v":0.05},1.05,"Kat fjernet",{"$f":"IF(OrgKat,KatFjernet,0)","v":0.05},1.05,"Kat fjernet"]
[null,null,"",null,null,null,null,"E85",false,null,{"$f":"SUM(K2:K15)","v":0.58000000000000007},{"$f":"PRODUCT(L2:L15)","v":1.72380285},null,{"$f":"SUM(N2:N15)","v":0.58000000000000007},{"$f":"PRODUCT(O2:O15)","v":1.72380285}]
[null,null,"",null,null,null,null,"Racefuel",false,null,null,{"$f":"L16-1","v":0.72380285},null,null,{"$f":"O16-1","v":0.72380285}]
[null,null,"",null,null,null,null,null,null,null,null,{"$f":"(GrenseGrunneffekt-Orginaleffekt*BenyttetSlagvolum/OrgSlagvolum)/Orginaleffekt","v":0.30769230769230771},null,null,{"$f":"(MaksGrunneffekt-Orginaleffekt*BenyttetSlagvolum/OrgSlagvolum)/(Orginaleffekt*BenyttetSlagvolum/OrgSlagvolum)","v":0.30769230769230771}]
[null,null,""]
[null,null,""]
[null,null,"",null,null,null,null,"Ettermontert turbo",false,null,null,null,null,"Forg 1/2",{"$f":"IF(TypeMotor=1,IF(TypeMotorMod=1,Konfigurasjon!E23,IF(TypeMotorMod=2,Konfigurasjon!F23,IF(TypeMotorMod=3,Konfigurasjon!G23,IF(TypeMotorMod=5,Konfigurasjon!H23)))))","v":0.2}]
[null,null,"",null,null,null,null,"Beregnet grunneffekt",{"$f":"IF(OrgTurbo=\"Ja\",Orginaleffekt*BenyttetSlagvolum*(1+TilleggTrimmet)/OrgSlagvolum,IF(EttermontertTurbo=TRUE,MaksGrunneffekt,Orginaleffekt*BenyttetSlagvolum*(1+TilleggTrimmet)/OrgSlagvolum))","v":130},{"$f":"Orginaleffekt/OrgSlagvolum*1000","v":65},null,null,null,"Forg 1/1",{"$f":"IF(TypeMotor=2,IF(TypeMotorMod=2,Konfigurasjon!E24,IF(TypeMotorMod=5,Konfigurasjon!F24)))","v":false}]
[null,null,"",null,null,null,null,"Maks grunneffekt",{"$f":"EffektPerLiter*BenyttetSlagvolum/1000","v":170},{"$f":"IF(OrgLitereffekt*BenyttetSlagvolum/1000*1.2>J24*BenyttetSlagvolum/1000,OrgLitereffekt*BenyttetSlagvolum/1000*1.2,J24*BenyttetSlagvolum/1000)","v":170},null,{"$f":"(Dekkbredde*((10*ValgtDekkbredde_mm)-1150)+100*(1+Tillegg-Kalkulering!$Q$27+Kalkulering!$Q$23+(Tillegg-Kalkulering!$Q$27)*Kalkulering!$Q$23)/(1+Kalkulering!$Q$23))","v":120},{"$f":"(Dekkbredde+100*((_KL1*UtregnetGrunneffekt*(1+Kalkulering!$Q$23))))","v":32500.02},"Innsprut",{"$f":"IF(TypeMotor=3,IF(TypeMotorMod=3,IF(Ventiler=3,Konfigurasjon!E29,Konfigurasjon!E25),IF(TypeMotorMod=5,IF(Ventiler=3,Konfigurasjon!F29,Konfigurasjon!F25),IF(TypeMotorMod=2,IF(Ventiler=3,Konfigurasjon!H29,Konfigurasjon!H25),IF(TypeMotorMod=1,Konfigurasjon!G25,0)))))","v":false}]
[null,null,"",null,null,null,null,"Maks effekt/liter",{"$f":"INDEX(Konfigurasjon!C13:E18,TypeMotorMod,Ventiler)","v":85},{"$f":"INDEX(Konfigurasjon!C13:E18,TypeMotorMod,Ventiler)","v":85},null,null,null,"Innsprut 1/1",{"$f":"IF(TypeMotor=6,IF(TypeMotorMod=3,Konfigurasjon!G30,IF(TypeMotorMod=2,Konfigurasjon!I30,IF(TypeMotorMod=1,Konfigurasjon!H30,0))))","v":false}]
[null,null,"",null,null,null,null,"Valgt dekkbredde",{"$f":"INDEX(F1:F15,ValgtDekkbredde,1)","v":215}]
[null,null,"",null,null,null,null,null,null,"Fratrekk dekk","Tillegg dekk"]
[null,null,"",null,null,null,null,"Min vekt kl 1",{"$f":"IF((165+((K27-500)/10))<ValgtDekkbredde_mm,K27,J27)","v":366.19718309859149},{"$f":"(Dekkbredde*((10*ValgtDekkbredde_mm)-1150)+100*(1+Tillegg-Kalkulering!$Q$27+Kalkulering!$Q$23+(Tillegg-Kalkulering!$Q$27)*Kalkulering!$Q$23)/(1+(Tillegg-Kalkulering!$Q$27)))/(Dekkbredde+100/((_KL1*UtregnetGrunneffekt*(1+(Tillegg-Kalkulering!$Q$27)))))","v":366.19718309859149},{"$f":"(Dekkbredde*((10*ValgtDekkbredde_mm)-1150)+100*(1+Tillegg-Kalkulering!$Q$27+Kalkulering!$Q$23+(Tillegg-Kalkulering!$Q$27)*Kalkulering!$Q$23)/(1+Kalkulering!$Q$23))/(Dekkbredde+100/((_KL1*UtregnetGrunneffekt*(1+Kalkulering!$Q$23))))","v":366.19718309859149}]
[null,null,"",null,null,null,null,"Min vekt kl 2",{"$f":"IF((165+((K28-500)/10))<ValgtDekkbredde_mm,K28,J28)","v":659.54606141522038},{"$f":"(Dekkbredde*((10*ValgtDekkbredde_mm)-1150)+100*(1+Tillegg-Kalkulering!$Q$27+Kalkulering!$Q$23+(Tillegg-Kalkulering!$Q$27)*Kalkulering!$Q$23)/(1+(Tillegg-Kalkulering!$Q$27)))/(Dekkbredde+100/((_KL2*UtregnetGrunneffekt*(1+(Tillegg-Kalkulering!$Q$27)))))","v":659.54606141522038},{"$f":"(Dekkbredde*((10*ValgtDekkbredde_mm)-1150)+100*(1+Tillegg-Kalkulering!$Q$27+Kalkulering!$Q$23+(Tillegg-Kalkulering!$Q$27)*Kalkulering!$Q$23)/(1+Kalkulering!$Q$23))/(Dekkbredde+100/((_KL2*UtregnetGrunneffekt*(1+Kalkulering!$Q$23))))","v":659.54606141522038}]
[null,null,"",null,null,null,null,"Min vekt kl 3",{"$f":"IF((165+((K29-500)/10))<ValgtDekkbredde_mm,K29,J29)","v":923.85786802030464},{"$f":"(Dekkbredde*((10*ValgtDekkbredde_mm)-1150)+100*(1+Tillegg-Kalkulering!$Q$27+Kalkulering!$Q$23+(Tillegg-Kalkulering!$Q$27)*Kalkulering!$Q$23)/(1+(Tillegg-Kalkulering!$Q$27)))/(Dekkbredde+100/((_KL3*UtregnetGrunneffekt*(1+(Tillegg-Kalkulering!$Q$27)))))","v":923.85786802030464},{"$f":"(Dekkbredde*((10*ValgtDekkbredde_mm)-1150)+100*(1+Tillegg-Kalkulering!$Q$27+Kalkulering!$Q$23+(Tillegg-Kalkulering!$Q$27)*Kalkulering!$Q$23)/(1+Kalkulering!$Q$23))/(Dekkbredde+100/((_KL3*UtregnetGrunneffekt*(1+Kalkulering!$Q$23))))","v":923.85786802030464}]
[null,null,"",null,null,null,null,"Min vekt kl 4",{"$f":"IF((165+((K30-500)/10))<ValgtDekkbredde_mm,K30,J30)","v":923.85786802030464},{"$f":"(Dekkbredde*((10*ValgtDekkbredde_mm)-1150)+100*(1+Tillegg-Kalkulering!$Q$27+Kalkulering!$Q$23+(Tillegg-Kalkulering!$Q$27)*Kalkulering!$Q$23)/(1+(Tillegg-Kalkulering!$Q$27)))/(Dekkbredde+100/((_KL4*UtregnetGrunneffekt*(1+(Tillegg-Kalkulering!$Q$27)))))","v":923.85786802030464},{"$f":"(Dekkbredde*((10*ValgtDekkbredde_mm)-1150)+100*(1+Tillegg-Kalkulering!$Q$27+Kalkulering!$Q$23+(Tillegg-Kalkulering!$Q$27)*Kalkulering!$Q$23)/(1+Kalkulering!$Q$23))/(Dekkbredde+100/((_KL4*UtregnetGrunneffekt*(1+Kalkulering!$Q$23))))","v":923.85786802030464}]
[]
[null,null,null,null,null,null,null,"Orginal motor"]
[null,null,null,null,null,null,null,"1 gasspjell per sylinder",false]
[null,null,null,null,null,null,null,"4 ventiler per sylinder",false,null,null,1,"Forgasser 1 spjell/2 syl"]
[null,null,null,null,null,null,null,"Kat orginalt",true,null,null,{"$f":"L34+1","v":2},"Forgasser 1 spjell/syl"]
[null,null,null,null,null,null,null,"Turbo / kompressor",false,null,null,{"$f":"L35+1","v":3},"Injection"]
[null,null,null,null,null,null,null,"OrgMotorType",{"$f":"IF(OrgTurbo,3,IF(OrgSpjell,2,1))","v":1},null,null,4,"Forgasser turbo"]
[null,null,null,null,null,null,null,"Diesel",false,null,null,5,"Injection turbo"]
[null,null,null,null,null,null,null,null,null,null,null,6,"Injection NA 1 spjell/syl"]
[null,null,null,null,null,null,null,null,null,null,null,7,"Injection 4v"]
[null,null,null,null,null,null,null,null,null,null,null,8,"Injection 4v  1 spjell per syl"]
[null,null,null,null,null,null,null,"Turbomotor",{"$f":"IF(OrgTurbo,TRUE,IF(EttermontertTurbo,TRUE,FALSE))","v":false}]
[null,null,null,null,null,null,null,"Endret slagvolum",false]